[Event "1st 4NCL International U2050"]
[Site "Telford"]
[Date "2018.11.03"]
[Round "6"]
[White "Benson, Paul J"]
[Black "Potter, Steven"]
[Result "1-0"]
[ECO "B00"]
[WhiteElo "1912"]
[BlackElo "1771"]
[Annotator "NA"]
[PlyCount "83"]
[EventDate "2018.10.31"]
[EventType "swiss"]
[EventCountry "GBR"]
[SourceTitle "playchess.com"]
[Source "ChessBase"]
[SourceQuality "1"]
[TimeControl "5400+30"]

1. e4 {[%emt 0:33:44]} b6 {[%emt 0:00:10]} 2. d4 {[%emt 0:01:30]} Bb7 {[%emt 0:00:17]} 3. f3 {[%emt 0:02:24]} e5 {[%emt 0:02:03]} 4. d5 {[%emt 0:12:30]} Bc5 {[%emt 0:01:14]} 5. Nc3 {[%emt 0:06:57]} Bxg1 {[%emt 0:03:21]} 6. Rxg1 {[%emt 0:00:21]} a6 {[%emt 0:01:12]} 7. g3 {[%emt 0:06:48]} d6 {[%emt 0:02:27]} 8. Be3 {[%emt 0:00:27]} Ne7 {[%emt 0:01:09]} 9. Qd2 {[%emt 0:03:56]} Nd7 {[%emt 0:02:04]} 10. Nd1 {[%emt 0:04:07]} b5 {[%emt 0:03:12]} 11. a4 {[%emt 0:04:38]} O-O {[%emt 0:02:32]} 12. axb5 {[%emt 0:06:26]} axb5 {[%emt 0:01:23]} 13. Rxa8 {[%emt 0:02:47]} Qxa8 {[%emt 0:00:21]} 14. Bxb5 {[%emt 0:00:31]} Nb8 {[%emt 0:01:47]} 15. g4 {[%emt 0:05:30]} Ba6 {[%emt 0:03:29]} 16. Bxa6 {[%emt 0:04:59]} Qxa6 {[%emt 0:00:53]} 17. Qe2 {[%emt 0:00:43]} Qb7 {[%emt 0:01:35]} 18. Kf2 {[%emt 0:01:31]} c5 {[%emt 0:02:03]} 19. dxc6 {[%emt 0:00:52]} Qxc6 {[%emt 0:00:43]} 20. Nc3 {[%emt 0:02:15]} d5 {[%emt 0:02:32]} 21. Nxd5 {[%emt 0:01:53]} Nxd5 {[%emt 0:00:59]} 22. exd5 {[%emt 0:00:10]} Qxd5 {[%emt 0:00:24]} 23. Rd1 {[%emt 0:02:27]} Qe6 {[%emt 0:02:10]} 24. Bc5 {[%emt 0:01:32]} Re8 {[%emt 0:00:35]} 25. Rd6 {[%emt 0:00:43]} Qc8 {[%emt 0:02:07]} 26. b4 {[%emt 0:06:24]} Nd7 {[%emt 0:04:23]} 27. Qb5 {[%emt 0:00:48]} Nxc5 {[%emt 0:03:12]} 28. Qxc5 {[%emt 0:02:38]} Qxc5+ {[%emt 0:02:06]} 29. bxc5 {[%emt 0:00:09]} Rc8 {[%emt 0:00:35]} 30. Rd5 {[%emt 0:03:08]} f6 {[%emt 0:00:42]} 31. Ke3 {[%emt 0:02:19]} Kf7 {[%emt 0:00:34]} 32. Kd3 {[%emt 0:03:10]} Rc7 {[%emt 0:00:45]} 33. Kc4 {[%emt 0:00:25]} Ke7 {[%emt 0:00:48]} 34. Kb5 {[%emt 0:05:41]} Rd7 {[%emt 0:02:13]} 35. Rxd7+ {[%emt 0:00:55]} Kxd7 {[%emt 0:00:07]} 36. c6+ {[%emt 0:00:12]} Kc7 {[%emt 0:00:10]} 37. Kc5 {[%emt 0:00:09]} h5 {[%emt 0:04:02]} 38. h3 {[%emt 0:02:37]} hxg4 {[%emt 0:02:57]} 39. hxg4 {[%emt 0:00:19]} Kc8 {[%emt 0:02:20]} 40. Kd5 {[%emt 0:00:31]} Kc7 {[%emt 0:00:19]} 41. c3 {[%emt 0:00:29]} Kc8 {[%emt 0:01:26]} 42. Ke6 1-0

[Event "1st 4NCL International U2050"]
[Site "Telford"]
[Date "2018.11.03"]
[Round "6"]
[White "Wynarczyk, Raymond"]
[Black "Murphy, Ross"]
[Result "1-0"]
[ECO "C42"]
[WhiteElo "1908"]
[BlackElo "1652"]
[Annotator "NA"]
[PlyCount "89"]
[EventDate "2018.10.31"]
[EventType "swiss"]
[EventCountry "GBR"]
[SourceTitle "playchess.com"]
[Source "ChessBase"]
[SourceQuality "1"]
[TimeControl "5400+30"]

1. e4 {[%emt 0:00:00]} Nf6 {[%emt 0:00:00]} 2. Nc3 {[%emt 0:00:00]} e5 {[%emt 0:00:00]} 3. Nf3 {[%emt 0:00:00]} Bb4 {[%emt 0:00:00]} 4. Nxe5 {[%emt 0:04:33]} Bxc3 {[%emt 0:00:17]} 5. dxc3 {[%emt 0:01:43]} Qe7 {[%emt 0:00:08]} 6. Nf3 {[%emt 0:04:12]} Qxe4+ {[%emt 0:00:51]} 7. Qe2 {[%emt 0:01:03]} O-O {[%emt 0:00:41]} 8. Qxe4 {[%emt 0:02:30]} Nxe4 {[%emt 0:00:03]} 9. Bd3 {[%emt 0:02:07]} d5 {[%emt 0:01:55]} 10. O-O {[%emt 0:02:34]} Nc5 {[%emt 0:00:33]} 11. Re1 {[%emt 0:02:34]} Nxd3 {[%emt 0:00:15]} 12. cxd3 {[%emt 0:00:13]} Bf5 {[%emt 0:00:24]} 13. Bf4 {[%emt 0:03:22]} Na6 {[%emt 0:01:30]} 14. d4 {[%emt 0:00:41]} Rfe8 {[%emt 0:00:44]} 15. h3 {[%emt 0:04:08]} f6 {[%emt 0:00:34]} 16. g4 {[%emt 0:03:04]} Be4 {[%emt 0:00:30]} 17. Nd2 {[%emt 0:00:51]} Bg6 {[%emt 0:00:52]} 18. Nf1 {[%emt 0:10:46]} Rxe1 {[%emt 0:00:24]} 19. Rxe1 {[%emt 0:00:11]} Kf7 {[%emt 0:00:08]} 20. Kg2 {[%emt 0:03:20]} Re8 {[%emt 0:00:34]} 21. Rxe8 {[%emt 0:01:04]} Kxe8 {[%emt 0:00:03]} 22. b4 {[%emt 0:00:49]} Kd7 {[%emt 0:01:36]} 23. Ne3 {[%emt 0:03:04]} c6 {[%emt 0:00:03]} 24. h4 {[%emt 0:04:35]} Nc7 {[%emt 0:00:34]} 25. Bxc7 {[%emt 0:01:27]} Kxc7 {[%emt 0:00:04]} 26. h5 {[%emt 0:00:45]} Bb1 {[%emt 0:00:21]} 27. a4 {[%emt 0:04:23]} Bd3 {[%emt 0:00:54]} 28. Kg3 {[%emt 0:02:21]} Kd6 {[%emt 0:00:47]} 29. Ng2 {[%emt 0:02:38]} Bc2 {[%emt 0:00:52]} 30. a5 {[%emt 0:00:49]} b6 {[%emt 0:00:47]} 31. axb6 {[%emt 0:00:44]} axb6 {[%emt 0:00:03]} 32. Ne3 {[%emt 0:03:00]} Bd3 {[%emt 0:03:50]} 33. Kf4 {[%emt 0:01:05]} g5+ {[%emt 0:01:44]} 34. hxg6 {[%emt 0:00:22]} hxg6 {[%emt 0:00:02]} 35. g5 {[%emt 0:03:19]} f5 {[%emt 0:02:34]} 36. Ng2 {[%emt 0:01:01]} Be2 {[%emt 0:01:19]} 37. f3 {[%emt 0:01:03]} Ke6 {[%emt 0:00:09]} 38. Nh4 {[%emt 0:00:21]} Kf7 {[%emt 0:00:37]} 39. Ke5 {[%emt 0:01:28]} Bb5 {[%emt 0:07:15]} 40. Kd6 {[%emt 0:00:36]} Ba4 {[%emt 0:03:33]} 41. Kc7 {[%emt 0:01:24]} f4 {[%emt 0:00:44]} 42. Kxb6 {[%emt 0:04:14]} Ke6 {[%emt 0:01:56]} 43. Nxg6 {[%emt 0:00:46]} Kf5 {[%emt 0:00:09]} 44. Nxf4 {[%emt 0:00:55]} Kxg5 {[%emt 0:00:27]} 45. Nd3 {[%emt 0:02:15]} 1-0

[Event "1st 4NCL International U2050"]
[Site "Telford"]
[Date "2018.11.03"]
[Round "6"]
[White "Ansari, Athar"]
[Black "Stubbs, Oliver"]
[Result "1-0"]
[ECO "C02"]
[WhiteElo "1898"]
[BlackElo "1672"]
[Annotator "NA"]
[PlyCount "147"]
[EventDate "2018.10.31"]
[EventType "swiss"]
[EventCountry "GBR"]
[SourceTitle "playchess.com"]
[Source "ChessBase"]
[SourceQuality "1"]
[TimeControl "5400+30"]

1. e4 {[%emt 0:00:00]} e6 {[%emt 0:00:00]} 2. d4 {[%emt 0:00:41]} d5 {[%emt 0:00:00]} 3. e5 {[%emt 0:00:41]} c5 {[%emt 0:00:00]} 4. Nf3 {[%emt 0:00:19]} cxd4 {[%emt 0:00:00]} 5. Bd3 {[%emt 0:01:49]} Nc6 {[%emt 0:00:57]} 6. O-O {[%emt 0:00:07]} Bd7 {[%emt 0:01:32]} 7. Re1 {[%emt 0:00:11]} Nb4 {[%emt 0:03:03]} 8. Nbd2 {[%emt 0:03:15]} Nxd3 {[%emt 0:00:30]} 9. cxd3 {[%emt 0:00:06]} Ne7 {[%emt 0:00:54]} 10. Nxd4 {[%emt 0:02:19]} Nc6 {[%emt 0:00:04]} 11. Nxc6 {[%emt 0:03:49]} bxc6 {[%emt 0:00:59]} 12. Qg4 {[%emt 0:00:10]} f5 {[%emt 0:07:12]} 13. exf6 {[%emt 0:02:25]} Qxf6 {[%emt 0:00:06]} 14. Nf3 {[%emt 0:00:59]} Bd6 {[%emt 0:04:31]} 15. Bd2 {[%emt 0:03:07]} O-O {[%emt 0:06:29]} 16. Bc3 {[%emt 0:00:20]} Qg6 {[%emt 0:02:01]} 17. Qxg6 {[%emt 0:03:02]} hxg6 {[%emt 0:00:05]} 18. Rac1 {[%emt 0:01:01]} Rfe8 {[%emt 0:07:47]} 19. Be5 {[%emt 0:00:28]} Be7 {[%emt 0:16:26]} 20. Bd4 {[%emt 0:00:38]} Bf6 {[%emt 0:02:54]} 21. Rc5 {[%emt 0:02:45]} Rab8 {[%emt 0:04:26]} 22. b3 {[%emt 0:00:38]} Rb4 {[%emt 0:03:52]} 23. Be5 {[%emt 0:02:19]} Rb5 {[%emt 0:02:13]} 24. Rec1 {[%emt 0:03:44]} Rc8 {[%emt 0:00:34]} 25. g4 {[%emt 0:02:21]} g5 {[%emt 0:03:23]} 26. h3 {[%emt 0:03:09]} Kf7 {[%emt 0:02:48]} 27. Bd4 {[%emt 0:05:18]} Bxd4 {[%emt 0:01:51]} 28. Nxd4 {[%emt 0:00:24]} Rxc5 {[%emt 0:00:06]} 29. Rxc5 {[%emt 0:00:20]} Kf6 {[%emt 0:03:07]} 30. b4 {[%emt 0:00:59]} Ke5 {[%emt 0:03:06]} 31. Nb3 {[%emt 0:00:07]} Rb8 {[%emt 0:06:13]} 32. d4+ {[%emt 0:00:28]} Kd6 {[%emt 0:00:39]} 33. a3 {[%emt 0:00:18]} e5 {[%emt 0:00:32]} 34. dxe5+ {[%emt 0:02:52]} Kxe5 {[%emt 0:00:26]} 35. Rc3 {[%emt 0:01:09]} Rf8 {[%emt 0:01:01]} 36. Nc5 {[%emt 0:01:11]} Kd6 {[%emt 0:00:09]} 37. Rd3 {[%emt 0:00:33]} Re8 {[%emt 0:03:27]} 38. Kf1 {[%emt 0:01:20]} Bc8 {[%emt 0:04:19]} 39. f3 {[%emt 0:00:40]} Kc7 {[%emt 0:01:17]} 40. Kf2 {[%emt 0:00:05]} Re7 {[%emt 0:00:42]} 41. Rc3 {[%emt 0:00:52]} Kd6 {[%emt 0:00:07]} 42. Nb3 {[%emt 0:00:11]} Bd7 {[%emt 0:00:27]} 43. Rd3 {[%emt 0:01:16]} Bc8 {[%emt 0:01:25]} 44. Nc5 {[%emt 0:00:06]} Kc7 {[%emt 0:00:06]} 45. Rd2 {[%emt 0:01:29]} Re8 {[%emt 0:00:12]} 46. Rc2 {[%emt 0:00:49]} Kd6 {[%emt 0:00:03]} 47. Nb3 {[%emt 0:02:13]} Bd7 {[%emt 0:00:08]} 48. Nc1 {[%emt 0:00:49]} Rh8 {[%emt 0:00:41]} 49. Kg3 {[%emt 0:00:10]} Re8 {[%emt 0:00:03]} 50. Rc5 {[%emt 0:01:49]} Re1 {[%emt 0:01:48]} 51. Rc3 {[%emt 0:02:28]} Re8 {[%emt 0:00:27]} 52. Nd3 {[%emt 0:00:12]} Bc8 {[%emt 0:00:35]} 53. a4 {[%emt 0:01:22]} Bd7 {[%emt 0:00:37]} 54. Nc5 {[%emt 0:02:11]} Rb8 {[%emt 0:01:08]} 55. Rb3 {[%emt 0:00:31]} Re8 {[%emt 0:02:27]} 56. Kf2 {[%emt 0:00:17]} Bc8 {[%emt 0:00:37]} 57. Rd3 {[%emt 0:00:40]} Kc7 {[%emt 0:00:28]} 58. Re3 {[%emt 0:00:40]} Rxe3 {[%emt 0:00:12]} 59. Kxe3 {[%emt 0:00:08]} Kd6 {[%emt 0:00:02]} 60. Kd4 {[%emt 0:00:14]} g6 {[%emt 0:00:57]} 61. Nd3 {[%emt 0:00:52]} Bd7 {[%emt 0:02:28]} 62. a5 {[%emt 0:00:05]} Be8 {[%emt 0:00:54]} 63. Ke3 {[%emt 0:01:28]} Ke6 {[%emt 0:01:21]} 64. Kd4 {[%emt 0:01:50]} Kd6 {[%emt 0:00:04]} 65. f4 {[%emt 0:00:21]} gxf4 {[%emt 0:00:11]} 66. Nxf4 {[%emt 0:00:04]} Bf7 {[%emt 0:02:43]} 67. h4 {[%emt 0:00:07]} Be8 {[%emt 0:00:12]} 68. Nd3 {[%emt 0:01:02]} Bf7 {[%emt 0:01:01]} 69. Nf4 {[%emt 0:00:13]} Be8 {[%emt 0:00:15]} 70. h5 {[%emt 0:01:16]} gxh5 {[%emt 0:00:08]} 71. gxh5 {[%emt 0:00:21]} Bf7 {[%emt 0:00:19]} 72. h6 {[%emt 0:00:31]} Bg8 {[%emt 0:00:07]} 73. Ng6 {[%emt 0:01:09]} Bh7 {[%emt 0:04:41]} 74. Nf8 1-0

[Event "1st 4NCL International U2050"]
[Site "Telford"]
[Date "2018.11.03"]
[Round "6"]
[White "Gostelow, David W"]
[Black "De Coverly, Roger D"]
[Result "1/2-1/2"]
[ECO "A48"]
[WhiteElo "1892"]
[BlackElo "1946"]
[Annotator "NA"]
[PlyCount "93"]
[EventDate "2018.10.31"]
[EventType "swiss"]
[EventCountry "GBR"]
[SourceTitle "playchess.com"]
[Source "ChessBase"]
[SourceQuality "1"]
[TimeControl "5400+30"]

1. d4 {[%emt 0:00:00]} Nf6 {[%emt 0:00:00]} 2. Bf4 {[%emt 0:00:00]} c5 {[%emt 0:00:00]} 3. c3 {[%emt 0:00:00]} b6 {[%emt 0:00:00]} 4. e3 {[%emt 0:04:23]} Bb7 {[%emt 0:00:12]} 5. Nf3 {[%emt 0:01:49]} g6 {[%emt 0:00:28]} 6. Be2 {[%emt 0:01:54]} Bg7 {[%emt 0:00:29]} 7. Nbd2 {[%emt 0:03:22]} O-O {[%emt 0:00:18]} 8. a4 {[%emt 0:03:05]} d6 {[%emt 0:01:01]} 9. h3 {[%emt 0:02:36]} a6 {[%emt 0:00:20]} 10. O-O {[%emt 0:00:22]} Nbd7 {[%emt 0:01:26]} 11. Bh2 {[%emt 0:00:54]} Qc7 {[%emt 0:02:07]} 12. Qc2 {[%emt 0:05:25]} Rac8 {[%emt 0:02:45]} 13. Rac1 {[%emt 0:01:46]} Qb8 {[%emt 0:01:07]} 14. Qb3 {[%emt 0:03:49]} Qa8 {[%emt 0:02:47]} 15. Rfe1 {[%emt 0:02:11]} Rfe8 {[%emt 0:08:20]} 16. Bc4 {[%emt 0:11:18]} d5 {[%emt 0:09:41]} 17. Bf1 {[%emt 0:00:05]} Bc6 {[%emt 0:04:28]} 18. Qa3 {[%emt 0:08:16]} Ne4 {[%emt 0:03:04]} 19. Nxe4 {[%emt 0:04:30]} dxe4 {[%emt 0:00:11]} 20. Nd2 {[%emt 0:02:08]} b5 {[%emt 0:07:17]} 21. axb5 {[%emt 0:04:26]} axb5 {[%emt 0:00:18]} 22. Ra1 {[%emt 0:05:43]} Qxa3 {[%emt 0:04:28]} 23. Rxa3 {[%emt 0:00:25]} e5 {[%emt 0:00:31]} 24. Nb3 {[%emt 0:03:05]} exd4 {[%emt 0:03:42]} 25. cxd4 {[%emt 0:03:20]} c4 {[%emt 0:02:23]} 26. Nd2 {[%emt 0:01:13]} Bf8 {[%emt 0:02:21]} 27. Ra7 {[%emt 0:04:13]} Nb6 {[%emt 0:01:55]} 28. Rea1 {[%emt 0:08:15]} Na4 {[%emt 0:01:49]} 29. Nxc4 {[%emt 0:03:50]} bxc4 {[%emt 0:00:56]} 30. Bxc4 {[%emt 0:00:06]} Re7 {[%emt 0:03:10]} 31. R7xa4 {[%emt 0:00:08]} Bxa4 {[%emt 0:00:19]} 32. Rxa4 {[%emt 0:00:02]} Rb7 {[%emt 0:01:17]} 33. Be5 {[%emt 0:02:34]} Rxb2 {[%emt 0:02:32]} 34. Bd5 {[%emt 0:00:43]} Bg7 {[%emt 0:08:39]} 35. Bg3 {[%emt 0:00:03]} Rb5 {[%emt 0:09:50]} 36. Bxe4 {[%emt 0:00:22]} h5 {[%emt 0:01:19]} 37. Ra7 {[%emt 0:02:03]} Bf6 {[%emt 0:03:10]} 38. h4 {[%emt 0:02:23]} Re8 {[%emt 0:05:29]} 39. Bd3 {[%emt 0:01:51]} Rb4 {[%emt 0:00:20]} 40. Bd6 {[%emt 0:01:29]} Rb2 {[%emt 0:01:07]} 41. Bc4 {[%emt 0:00:46]} Rc8 {[%emt 0:00:36]} 42. Bxf7+ {[%emt 0:00:18]} Kh8 {[%emt 0:00:12]} 43. Bg3 {[%emt 0:01:01]} Rc1+ {[%emt 0:00:21]} 44. Kh2 {[%emt 0:00:03]} Rbb1 {[%emt 0:03:58]} 45. Be5 {[%emt 0:00:07]} Rb6 {[%emt 0:00:14]} 46. Kg3 {[%emt 0:02:05]} Rc2 {[%emt 0:00:18]} 47. Ra2 {[%emt 0:02:37]} 1/2-1/2

[Event "1st 4NCL International U2050"]
[Site "Telford"]
[Date "2018.11.03"]
[Round "6"]
[White "Hughes, Peter"]
[Black "Wilson, Matthew R"]
[Result "1/2-1/2"]
[ECO "D36"]
[WhiteElo "1874"]
[BlackElo "1820"]
[Annotator "NA"]
[PlyCount "66"]
[EventDate "2018.10.31"]
[EventType "swiss"]
[EventCountry "GBR"]
[SourceTitle "playchess.com"]
[Source "ChessBase"]
[SourceQuality "1"]
[TimeControl "5400+30"]

1. d4 {[%emt 0:00:00]} Nf6 {[%emt 0:00:00]} 2. c4 {[%emt 0:00:00]} e6 {[%emt 0:00:00]} 3. Nc3 {[%emt 0:00:00]} d5 {[%emt 0:00:00]} 4. cxd5 {[%emt 0:00:02]} exd5 {[%emt 0:00:00]} 5. Bg5 {[%emt 0:00:22]} Be7 {[%emt 0:00:23]} 6. e3 {[%emt 0:00:28]} c6 {[%emt 0:00:09]} 7. Bd3 {[%emt 0:00:39]} Nbd7 {[%emt 0:00:31]} 8. Qc2 {[%emt 0:00:32]} h6 {[%emt 0:00:11]} 9. Bh4 {[%emt 0:00:26]} Nh5 {[%emt 0:00:27]} 10. Bxe7 {[%emt 0:00:57]} Qxe7 {[%emt 0:00:04]} 11. Nge2 {[%emt 0:01:48]} Nb6 {[%emt 0:00:15]} 12. O-O {[%emt 0:09:28]} O-O {[%emt 0:00:54]} 13. Rae1 {[%emt 0:09:05]} Re8 {[%emt 0:10:38]} 14. Kh1 {[%emt 0:07:21]} a6 {[%emt 0:08:31]} 15. Ng1 {[%emt 0:02:30]} Be6 {[%emt 0:01:14]} 16. f4 {[%emt 0:04:59]} Nf6 {[%emt 0:02:37]} 17. Nf3 {[%emt 0:05:41]} Rad8 {[%emt 0:09:21]} 18. f5 {[%emt 0:10:31]} Bc8 {[%emt 0:00:06]} 19. e4 {[%emt 0:04:37]} dxe4 {[%emt 0:00:44]} 20. Nxe4 {[%emt 0:01:35]} Nxe4 {[%emt 0:01:32]} 21. Rxe4 {[%emt 0:03:56]} Qf6 {[%emt 0:04:04]} 22. Qe2 {[%emt 0:09:29]} Rxe4 {[%emt 0:05:33]} 23. Qxe4 {[%emt 0:02:32]} Nd5 {[%emt 0:02:10]} 24. Ne5 {[%emt 0:05:10]} h5 {[%emt 0:11:53]} 25. Qf3 {[%emt 0:06:44]} Qg5 {[%emt 0:01:26]} 26. Bc4 {[%emt 0:03:46]} Rd6 {[%emt 0:03:44]} 27. h3 {[%emt 0:01:43]} a5 {[%emt 0:12:19]} 28. Qf2 {[%emt 0:02:12]} b5 {[%emt 0:04:48]} 29. Bxd5 {[%emt 0:03:34]} cxd5 {[%emt 0:01:11]} 30. Qc2 {[%emt 0:00:48]} Qd8 {[%emt 0:01:54]} 31. Qe2 {[%emt 0:00:43]} Qh4 {[%emt 0:03:01]} 32. Qc2 {[%emt 0:00:49]} Ba6 {[%emt 0:03:44]} 33. Qc7 {[%emt 0:01:09]} Qf6 {[%emt 0:01:30]} 1/2-1/2

[Event "1st 4NCL International U2050"]
[Site "Telford"]
[Date "2018.11.03"]
[Round "6"]
[White "Ali, Golam S"]
[Black "Walley, A Clive"]
[Result "0-1"]
[ECO "E70"]
[WhiteElo "1859"]
[BlackElo "1846"]
[Annotator "NA"]
[PlyCount "158"]
[EventDate "2018.10.31"]
[EventType "swiss"]
[EventCountry "GBR"]
[SourceTitle "playchess.com"]
[Source "ChessBase"]
[SourceQuality "1"]
[TimeControl "5400+30"]

1. d4 {[%emt 0:00:20]} Nf6 {[%emt 0:00:00]} 2. c4 {[%emt 0:00:09]} g6 {[%emt 0:00:00]} 3. Nc3 {[%emt 0:00:17]} Bg7 {[%emt 0:00:00]} 4. e4 {[%emt 0:00:09]} d6 {[%emt 0:00:00]} 5. f4 {[%emt 0:00:14]} O-O {[%emt 0:00:00]} 6. Bd3 {[%emt 0:02:19]} c5 {[%emt 0:00:01]} 7. d5 {[%emt 0:00:12]} e6 {[%emt 0:00:09]} 8. f5 {[%emt 0:01:46]} exf5 {[%emt 0:04:20]} 9. exf5 {[%emt 0:00:27]} Re8+ {[%emt 0:08:56]} 10. Nge2 {[%emt 0:03:57]} Ng4 {[%emt 0:10:18]} 11. O-O {[%emt 0:06:12]} Qh4 {[%emt 0:04:14] E70: King's Indian: Miscellaneous lines with 4 e4, including 5 Nge2 and 5 Bd3 0-0 6 Nge2} 12. h3 {[%emt 0:01:53]} Ne3 {[%emt 0:05:29]} 13. Bxe3 {[%emt 0:01:50]} Rxe3 {[%emt 0:00:07]} 14. Rf4 {[%emt 0:02:51]} Qe7 {[%emt 0:06:49]} 15. fxg6 {[%emt 0:23:52]} fxg6 {[%emt 0:02:43]} 16. Qd2 $146 {[%emt 0:02:22]} ({Predecessor:} 16. Re4 Rxe4 17. Bxe4 Nd7 18. Qd2 Ne5 19. b3 {0-1 (27) Byerly,J-Harmon,C (2255) Seattle 1988}) 16... Bh6 {[%emt 0:03:59]} 17. Raf1 {[%emt 0:00:58]} Bxf4 {[%emt 0:03:12]} 18. Rxf4 {[%emt 0:00:05]} Re5 {[%emt 0:03:53]} 19. Ng3 {[%emt 0:03:31]} Nd7 {[%emt 0:08:17]} 20. Nce4 {[%emt 0:01:03]} b6 {[%emt 0:03:34]} 21. h4 {[%emt 0:13:09]} Ba6 {[%emt 0:03:29]} 22. h5 {[%emt 0:03:55]} Rf8 {[%emt 0:07:55]} 23. hxg6 {[%emt 0:01:28]} hxg6 {[%emt 0:06:50]} 24. Rg4 {[%emt 0:06:06]} g5 {[%emt 0:05:57]} 25. Nxg5 {[%emt 0:07:48]} Nf6 {[%emt 0:03:04]} 26. Bh7+ {[%emt 0:11:05]} Kh8 {[%emt 0:02:58]} 27. Rh4 {[%emt 0:00:41]} Nxh7 {[%emt 0:04:03]} 28. Rxh7+ {[%emt 0:02:04]} Qxh7 {[%emt 0:00:04]} 29. Nxh7 {[%emt 0:00:06]} Kxh7 {[%emt 0:00:01]} 30. Qd3+ {[%emt 0:00:37]} Kg7 {[%emt 0:01:07]} 31. Ne2 {[%emt 0:01:09]} Rf6 {[%emt 0:00:38]} 32. Nf4 {[%emt 0:00:57]} Bc8 {[%emt 0:01:18]} 33. Qf3 {[%emt 0:00:36]} Kf7 {[%emt 0:01:13]} 34. g3 {[%emt 0:00:52]} Bd7 {[%emt 0:00:30]} 35. a3 {[%emt 0:00:19]} Rg5 {[%emt 0:00:21]} 36. b4 {[%emt 0:00:40]} Kf8 {[%emt 0:00:49]} 37. bxc5 {[%emt 0:01:31]} bxc5 {[%emt 0:00:01]} 38. Ne6+ {[%emt 0:00:26]} Ke7 {[%emt 0:00:21]} 39. Qb3 {[%emt 0:00:13]} Bxe6 {[%emt 0:00:35]} 40. dxe6 {[%emt 0:00:09]} Kxe6 {[%emt 0:00:37]} 41. Qe3+ {[%emt 0:00:52]} Re5 {[%emt 0:00:06]} 42. Qc3 {[%emt 0:00:29]} Rg6 {[%emt 0:00:25]} 43. Qa5 {[%emt 0:00:45]} Reg5 {[%emt 0:00:47]} 44. Qxa7 {[%emt 0:00:45]} Rxg3+ {[%emt 0:00:03]} 45. Kf2 {[%emt 0:00:07]} Ke5 {[%emt 0:00:09]} 46. Qe7+ {[%emt 0:00:50]} Kd4 {[%emt 0:00:48]} 47. a4 {[%emt 0:00:41]} Kxc4 {[%emt 0:00:29]} 48. Qb7 {[%emt 0:00:15]} Rg2+ {[%emt 0:00:58]} 49. Kf3 {[%emt 0:00:25]} R6g3+ {[%emt 0:00:24]} 50. Kf4 {[%emt 0:00:14]} Rg4+ {[%emt 0:00:56]} 51. Kf3 {[%emt 0:00:13]} d5 {[%emt 0:00:41]} 52. a5 {[%emt 0:00:36]} R2g3+ {[%emt 0:00:08]} 53. Kf2 {[%emt 0:00:07]} Rb3 {[%emt 0:01:17]} 54. Qc7 {[%emt 0:01:12]} Rd4 {[%emt 0:00:21]} 55. a6 {[%emt 0:00:59]} Rd2+ {[%emt 0:00:46]} 56. Ke1 {[%emt 0:00:09]} Ra2 {[%emt 0:01:05]} 57. Qf4+ {[%emt 0:00:51]} d4 {[%emt 0:00:26]} 58. Qc1+ {[%emt 0:00:35]} Kb5 {[%emt 0:00:29]} 59. Qd1 {[%emt 0:00:11]} Rba3 {[%emt 0:00:17]} 60. Qb1+ {[%emt 0:00:43]} Kxa6 {[%emt 0:00:07]} 61. Qg6+ {[%emt 0:00:06]} Kb5 {[%emt 0:00:12]} 62. Qe8+ {[%emt 0:00:40]} Kb4 {[%emt 0:00:10]} 63. Qb8+ {[%emt 0:00:13]} Kc3 {[%emt 0:00:07]} 64. Qg3+ {[%emt 0:00:23]} d3 {[%emt 0:00:27]} 65. Qe5+ {[%emt 0:00:10]} Kb4 {[%emt 0:00:18]} 66. Qb8+ {[%emt 0:00:14]} Kc4 {[%emt 0:00:24]} 67. Qg8+ {[%emt 0:00:13]} Kc3 {[%emt 0:00:08]} 68. Qg7+ {[%emt 0:00:11]} Kc2 {[%emt 0:00:14]} 69. Qg2+ {[%emt 0:00:37]} Kc1 {[%emt 0:00:17]} 70. Qg5+ {[%emt 0:01:54]} d2+ {[%emt 0:00:31]} 71. Ke2 {[%emt 0:00:21]} Rc2 {[%emt 0:02:19]} 72. Kf1 {[%emt 0:01:05]} c4 {[%emt 0:00:35]} 73. Qf4 {[%emt 0:00:15]} Kb2 {[%emt 0:00:45]} 74. Qb8+ {[%emt 0:00:28]} Rb3 {[%emt 0:00:20]} 75. Qh8+ {[%emt 0:00:12]} Kb1 {[%emt 0:00:17]} 76. Ke2 {[%emt 0:00:46]} Rd3 {[%emt 0:00:59]} 77. Qb8+ {[%emt 0:00:51]} Kc1 {[%emt 0:00:12]} 78. Qf4 {[%emt 0:00:22]} Kb1 {[%emt 0:00:45]} 79. Qb8+ {[%emt 0:00:25]} Rb2 {[%emt 0:00:24]} 0-1

[Event "1st 4NCL International U2050"]
[Site "Telford"]
[Date "2018.11.03"]
[Round "6"]
[White "Zdanowski, Adrian"]
[Black "Gogia, Armaan"]
[Result "1-0"]
[ECO "E97"]
[WhiteElo "1845"]
[BlackElo "1808"]
[Annotator "NA"]
[PlyCount "75"]
[EventDate "2018.10.31"]
[EventType "swiss"]
[EventCountry "GBR"]
[SourceTitle "playchess.com"]
[Source "ChessBase"]
[SourceQuality "1"]
[TimeControl "5400+30"]

1. Nf3 {[%emt 0:00:00]} d6 {[%emt 0:00:00]} 2. d4 {[%emt 0:00:04]} Nf6 {[%emt 0:00:00]} 3. c4 {[%emt 0:00:05]} g6 {[%emt 0:00:00]} 4. Nc3 {[%emt 0:00:05]} Bg7 {[%emt 0:00:00]} 5. e4 {[%emt 0:00:06]} O-O {[%emt 0:00:00]} 6. Be2 {[%emt 0:00:03]} e5 {[%emt 0:00:05]} 7. O-O {[%emt 0:00:06]} Nc6 {[%emt 0:00:02]} 8. d5 {[%emt 0:00:06]} Ne7 {[%emt 0:00:04]} 9. b4 {[%emt 0:00:28]} a5 {[%emt 0:00:05]} 10. Ba3 {[%emt 0:05:23]} Nd7 {[%emt 0:00:54]} 11. Rc1 {[%emt 0:02:37]} b6 {[%emt 0:02:12]} 12. Qc2 {[%emt 0:07:17]} h6 {[%emt 0:04:08]} 13. Nd2 {[%emt 0:03:44]} f5 {[%emt 0:01:14]} 14. bxa5 {[%emt 0:00:35]} Rxa5 {[%emt 0:00:35]} 15. Bb4 {[%emt 0:00:04]} Ra8 {[%emt 0:01:54]} 16. Nb5 {[%emt 0:04:29]} Nf6 {[%emt 0:04:16]} 17. f3 {[%emt 0:00:57]} f4 {[%emt 0:02:44]} 18. a4 {[%emt 0:00:22]} g5 {[%emt 0:11:38]} 19. Ra1 {[%emt 0:02:59]} h5 {[%emt 0:04:27]} 20. a5 {[%emt 0:00:05]} bxa5 {[%emt 0:02:24]} 21. Rxa5 {[%emt 0:00:44]} Rb8 {[%emt 0:03:31]} 22. Ra7 {[%emt 0:00:30]} c6 {[%emt 0:01:44]} 23. Ba5 {[%emt 0:00:49]} Qe8 {[%emt 0:04:04]} 24. Nxd6 {[%emt 0:01:11]} Qg6 {[%emt 0:00:38]} 25. Rxe7 {[%emt 0:00:39]} Nxd5 {[%emt 0:00:44]} 26. cxd5 {[%emt 0:02:46]} Qxd6 {[%emt 0:01:53]} 27. Bc7 {[%emt 0:01:41]} Qxe7 {[%emt 0:00:48]} 28. Bxb8 {[%emt 0:00:02]} cxd5 {[%emt 0:02:26]} 29. Ra1 {[%emt 0:02:18]} dxe4 {[%emt 0:01:33]} 30. Nxe4 {[%emt 0:00:30]} Bf5 {[%emt 0:01:12]} 31. Qb3+ {[%emt 0:02:17]} Kh8 {[%emt 0:01:13]} 32. Bd6 {[%emt 0:00:13]} Qd8 {[%emt 0:01:53]} 33. Rd1 {[%emt 0:02:23]} Re8 {[%emt 0:03:48]} 34. Bxe5 {[%emt 0:01:25]} Qe7 {[%emt 0:00:15]} 35. Bxg7+ {[%emt 0:00:38]} Qxg7 {[%emt 0:00:25]} 36. Qd5 {[%emt 0:01:44]} Bxe4 {[%emt 0:02:08]} 37. fxe4 {[%emt 0:00:14]} g4 {[%emt 0:00:21]} 38. Qxh5+ {[%emt 0:00:20]} 1-0